[Event "Menorca Open-A 2022"]
[Site "Menorca"]
[Date "2022.04.20"]
[Round "1.1"]
[White "Erigaisi Arjun"]
[Black "Aguado Doncel, Pablo Luis"]
[Result "1-0"]
[ECO "D02"]
[WhiteElo "2633"]
[BlackElo "2095"]
[Annotator "TA"]
[PlyCount "93"]
[EventDate "2022.04.20"]
[EventType "swiss"]
[EventCountry "ESP"]
[SourceTitle "playchess.com"]
[Source "ChessBase"]
[SourceQuality "1"]
[TimeControl "5400+30"]

{[%evp 15,93,0,2,0,0,-32,3,12,56,51,62,50,88,83,77,77,75,80,79,72,70,66,81,74,83,0,0,0,92,67,108,64,161,109,144,140,158,133,336,300,447,434,687,332,350,332,340,347,318,336,336,305,312,312,310,312,312,312,496,489,614,468,659,653,712,707,700,678,1938,1168,1089,936,29978,29979,29978,29979,29979,29980,29988,29989]} 1. d4 {[%emt 1:31:00]} d5 {[%emt 1:31:00]} 2. Nf3 {[%emt 0:00:30]} Nf6 {[%emt 0:00:30]} 3. Bf4 {[%emt 0:00:30]} e6 {[%emt 0:00:30]} 4. e3 {[%emt 0:00:30][%cal Be2e3,Be3e4][%mdl 32]} c5 {[%emt 0:00:30]} 5. Nbd2 {[%emt 0:00:30]} Nc6 {[%emt 0:00:30]} 6. c3 {[%emt 0:00:30]} Bd6 {[%emt 0:00:30]} 7. Bg3 {[%emt 0:00:30]} O-O {[%emt 0:00:30]} 8. Bd3 {[%emt 0:00:30]} b6 {[%emt 0:00:30]} 9. e4 {[%emt 0:00:30] [#] aiming for e5. 9.Qe2 is setting a new trend. D02: 1 d4 d5 2 Nf3 sidelines, including 2...Nf6 3 g3 and 2...Nf6 3 Bf4.} Be7 {[%emt 0:00:30]} 10. e5 {[%emt 0:00:30]} Nd7 {[%emt 0:00:30]} 11. h4 {[%emt 0:00:30][%cal Od3h7] The position is equal.} f5 {[%emt 0:00:30]} 12. exf6 $1 {[%emt 0:00:30]} Nxf6 {[%emt 0:00:30]} 13. Ne5 {[%emt 0:00:30]} Bb7 {[%emt 0:00:30] [#]} 14. Nxc6 $146 {[%emt 0:00:30] 0x0.00249b13221edp-1022s more active pieces.} ({Predecessor:} 14. Qe2 Qe8 15. Bb5 Bd8 16. dxc5 bxc5 17. h5 Rc8 18. h6 g6 19. Nd3 Nd7 20. Bd6 {0-1 (81) Babiy,O (2259)-Smirnova,E (2196) Warsaw 2021}) 14... Bxc6 {[%emt 0:00:30]} 15. Qe2 {[%emt 0:00:30] Against Ne4} Qd7 {[%emt 0:00:30]} 16. O-O {[%emt 0:00:30]} Bd6 {[%emt 0:00:30]} 17. Bxd6 {[%emt 0:00:30]} Qxd6 {[%emt 0:00:30]} 18. Nf3 {[%emt 0:00:30]} Ne4 {[%emt 0:00:30]} 19. Ne5 {[%emt 0:00:30]} Bb7 {[%emt 0:00:30]} 20. f3 {[%emt 0:00:30]} (20. a3 $16) 20... cxd4 $11 {[%emt 0:00:30]} 21. cxd4 {[%emt 0:00:30]} Rac8 {[%emt 0:00:30]} 22. Qe3 $36 {[%emt 0:00:30][%mdl 2048] White has the initiative.} ({Not} 22. Bxe4 dxe4 23. Rad1 exf3 24. Nxf3 Bd5 $17) 22... Nf6 {[%emt 0:00:30]} 23. Rae1 {[%emt 0:00:30]} Rfe8 {[%emt 0:00:30]} (23... Nh5 $14) 24. Rf2 {[%emt 0:00:30]} (24. h5 $18) 24... Rc7 {[%emt 0:00:30]} 25. a3 {[%emt 0:00:30]} a6 {[%emt 0:00:30]} 26. Qg5 {[%emt 0:00:30]} Ree7 $2 {[%emt 0:00:30] This move loses the game for Black.} (26... Rf8 $16 {was worth a try.} 27. Rc2 Rxc2 28. Bxc2 Bc8) 27. h5 $18 {[%emt 0:00:30]} h6 {[%emt 0:00:30]} (27... Qd8 $142 28. h6 Qf8) 28. Qg6 {[%emt 0:00:30]} Rc8 {[%emt 0:00:30]} (28... Kf8 $142 29. g4 Bc6) 29. Ng4 {[%emt 0:00:30]} (29. Rfe2 $142) 29... Qf4 {[%emt 0:00:30]} 30. Nxf6+ {[%emt 0:00:30]} Qxf6 {[%emt 0:00:30]} 31. Qh7+ {[%emt 0:00:30]} Kf8 {[%emt 0:00:30]} 32. Qh8+ {[%emt 0:00:30]} Kf7 {[%emt 0:00:30]} 33. Bg6+ {[%emt 0:00:30]} Qxg6 {[%emt 0:00:30]} 34. hxg6+ {[%emt 0:00:30]} Kxg6 {[%emt 0:00:30] [#]} 35. Qxc8 {[%emt 0:00:30]} Bxc8 {[%emt 0:00:30][%mdl 4096] Endgame KRR-KRB} 36. Rc2 {[%emt 0:00:30] Prevents Rc7.} Re8 {[%emt 0:00:30]} (36... Bd7 $142 37. Rc7 Kf6) 37. Rc6 {[%emt 0:00:30]} b5 {[%emt 0:00:30]} 38. Rc7 {[%emt 0:00:30] Threatens to win with Rec1.} e5 {[%emt 0:00:30]} (38... Rd8 $142 39. Rec1 Bd7) 39. Rxe5 {[%emt 0:00:30]} Rxe5 {[%emt 0:00:30]} 40. dxe5 {[%emt 0:00:30] KR-KB} Be6 {[%emt 0:00:30]} 41. g4 {[%emt 0:00:30]} Kg5 {[%emt 0:00:30]} 42. Rc6 {[%emt 0:00:30]} Bg8 {[%emt 0:00:30]} 43. Kf2 {[%emt 0:00:30] White threatens Kg3 and mate.} g6 {[%emt 0:00:30]} 44. Kg3 {[%emt 0:00:30][%csl Gg3][%cal Rf3f4] White mates.} h5 {[%emt 0:00:30]} 45. f4+ {[%emt 0:00:30]} Kh6 {[%emt 0:00:30]} 46. gxh5 {[%emt 0:00:30]} Kxh5 {[%emt 0:00:30]} 47. Rc8 {[%emt 0:00:30] Weighted Error Value: White=0.23 (precise) /Black=0.67} 1-0

[Event "Menorca Open-A 2022"]
[Site "Menorca"]
[Date "2022.04.20"]
[Round "1.2"]
[White "Marin Ferragut, Pau"]
[Black "Santos Latasa, Jaime"]
[Result "0-1"]
[ECO "B26"]
[WhiteElo "2044"]
[BlackElo "2640"]
[Annotator "TA"]
[PlyCount "112"]
[EventDate "2022.04.20"]
[EventType "swiss"]
[EventCountry "ESP"]
[SourceTitle "playchess.com"]
[Source "ChessBase"]
[SourceQuality "1"]
[TimeControl "5400+30"]

{[%evp 15,112,-11,8,8,6,0,9,10,10,0,0,0,10,4,36,-29,-13,-18,-10,-54,-52,-96,-93,-83,-97,-124,-97,-112,-142,-141,-85,-125,-100,-92,-53,-49,-43,-50,-64,-63,-56,-317,-306,-414,-405,-427,-385,-354,-365,-511,-490,-482,-464,-463,-452,-450,-420,-1022,-1020,-6375,-655,-1382,-1362,-1962,-1926,-1926,-1966,-1966,-1962,-1916,-1916,-1894,-1868,-1918,-1918,-1781,-1781,-1818,-1818,-1641,-1558,-1689,-1689,-1207,-1118,-12404,-10690,-6751,-5102,-1357,-1642,-29970,-29971,-29971,-29969,-29966,-29962,-10814,-4718]} 1. e4 {[%emt 0:00:44]} c5 {[%emt 0:00:43]} 2. Nc3 {[%emt 0:00:24]} Nc6 {[%emt 0:00:11]} 3. g3 {[%emt 0:00:25]} g6 {[%emt 0:00:08]} 4. Bg2 {[%emt 0:00:33]} Bg7 {[%emt 0:00:09]} 5. d3 {[%emt 0:00:58]} d6 {[%emt 0:00:42]} 6. Be3 {[%emt 0:00:12]} Rb8 {[%emt 0:00:09]} 7. Qd2 {[%emt 0:00:45]} b5 {[%emt 0:00:24]} 8. f4 {[%emt 0:00:43]} Nd4 {[%emt 0:01:57]} 9. Nd1 {[%emt 0:01:39] B26: Closed Sicilian: 3 g3, lines with early Be3.} b4 {[%emt 0:00:52]} 10. c3 {[%emt 0:00:34]} Nc6 $5 {[%emt 0:00:21][%mdl 4] Leaves trodden paths.} 11. Ne2 {[%emt 0:03:26] The position is equal.} bxc3 {[%emt 0:01:16]} 12. bxc3 {[%emt 0:01:30]} e6 {[%emt 0:00:23]} 13. O-O {[%emt 0:02:43]} Nge7 {[%emt 0:00:24]} 14. g4 {[%emt 0:08:25][%cal Of4f5]} f5 {[%emt 0:02:58] [#]} 15. h3 $146 {[%emt 0:03:03]} ({White should try} 15. gxf5 $14 exf5 16. Nf2) ({Predecessor:} 15. gxf5 exf5 16. Ng3 O-O 17. exf5 Bxf5 18. Nxf5 Rxf5 19. Qe2 Qc7 20. Bd2 Re8 21. Ne3 {0-1 (42) Weller,U (2070)-Poghosyan,T (2109) Braunschweig 2019}) 15... O-O $11 {[%emt 0:01:16]} 16. Ng3 {[%emt 0:05:08]} Qc7 {[%emt 0:05:18]} 17. Nf2 {[%emt 0:01:09]} fxe4 {[%emt 0:02:18]} 18. dxe4 {[%emt 0:06:37] [#]} Na5 $1 {[%emt 0:00:52]} 19. Qd3 {[%emt 0:08:48] Prevents Nc4.} Rb6 {[%emt 0:00:17]} 20. Rfd1 {[%emt 0:01:05]} Ba6 {[%emt 0:00:45]} 21. Qc2 {[%emt 0:00:13]} Nc4 {[%emt 0:01:01]} 22. Bc1 {[%emt 0:01:33] [#]} Rbb8 {[%emt 0:00:44]} (22... d5 $142 $1 {[%cal Og6g5] White must now prevent ...g5!} 23. Nd3 Bf6) 23. a4 {[%emt 0:09:46]} Qa5 {[%emt 0:01:31]} 24. Ne2 {[%emt 0:00:33]} Qb6 {[%emt 0:02:16][%cal Od6d5] &Nero is much more active. The white rooks are badly placed.} 25. f5 {[%emt 0:04:03]} exf5 {[%emt 0:09:45]} 26. Bg5 {[%emt 0:02:23]} Qc7 {[%emt 0:07:48]} 27. exf5 {[%emt 0:01:51]} gxf5 {[%emt 0:00:26]} 28. gxf5 $2 {[%emt 0:02:17][%mdl 8192] Loses the game.} (28. Nf4 $15 Ne3 29. Qd2 Nxg2 30. Ne6) 28... Nxf5 $19 {[%emt 0:04:16]} 29. Bd5+ {[%emt 0:01:48]} Kh8 {[%emt 0:00:14]} 30. Qd3 {[%emt 0:04:00] Inhibits Nce3.} Nb2 {[%emt 0:00:31]} ({Not} 30... h6 31. Nf4 $17 (31. Bf4 Rb2 $17)) 31. Qxa6 {[%emt 0:01:48] aiming for Rf1.} Rb6 {[%emt 0:00:09]} 32. Qa5 {[%emt 0:00:21]} Nxd1 {[%emt 0:00:07]} 33. Rxd1 {[%emt 0:00:25]} Be5 {[%emt 0:00:09]} 34. Nf4 {[%emt 0:08:15]} ({Don't play} 34. Ng4 Qg7 35. Bf4 h5 36. Bxe5 dxe5 37. Qxc5 hxg4 $19) 34... Bxf4 {[%emt 0:01:03][%mdl 64] Deflection} 35. Bxf4 {[%emt 0:00:12]} Ne7 {[%emt 0:00:13]} 36. Bc1 {[%emt 0:11:48]} (36. Bh6 $142 Rf6 37. Ng4 Rxh6 38. Nxh6 Nxd5 39. Rxd5) 36... Nxd5 {[%emt 0:00:39][%mdl 64] Remove Defender} 37. Rxd5 {[%emt 0:00:19]} Rxf2 {[%emt 0:01:16]} 38. Kxf2 {[%emt 0:01:01] Strongly threatening c4.} Qf7+ {[%emt 0:00:05]} 39. Kg3 {[%emt 0:01:17]} Qxd5 {[%emt 0:00:17]} 40. Qxa7 {[%emt 0:00:44][%mdl 4096] Endgame KQR-KQB} Rb7 {[%emt 0:00:26]} 41. Qa8+ {[%emt 0:00:14]} Qg8+ {[%emt 0:00:11]} 42. Qxg8+ {[%emt 0:00:21]} Kxg8 {[%emt 0:00:06] KR-KB} 43. Bf4 {[%emt 0:00:16]} Rb6 {[%emt 0:00:34]} 44. Kf3 {[%emt 0:00:09]} Kf7 {[%emt 0:00:06]} 45. a5 {[%emt 0:00:22]} Ra6 {[%emt 0:00:07]} 46. c4 {[%emt 0:00:49]} Ke6 {[%emt 0:00:05]} 47. Bd2 {[%emt 0:00:15]} Ra8 {[%emt 0:00:22]} 48. Ke4 {[%emt 0:00:10]} Rg8 {[%emt 0:00:22]} 49. Bf4 {[%emt 0:02:16] Against Rg3} Rb8 {[%emt 0:00:15] Hoping for ...Rb3.} 50. Bd2 {[%emt 0:00:18]} Rb3 {[%emt 0:00:20]} 51. h4 {[%emt 0:00:09]} Rh3 {[%emt 0:00:08]} 52. Be1 {[%emt 0:03:30]} Rh1 {[%emt 0:00:11]} 53. Bd2 {[%emt 0:00:27]} Rxh4+ {[%emt 0:00:08]} 54. Kd3 {[%emt 0:00:58]} Rg4 {[%emt 0:00:14]} 55. Bh6 {[%emt 0:00:20]} Rg6 {[%emt 0:00:27]} 56. Bf4 {[%emt 0:00:18]} h5 {[%emt 1:00:35] Weighted Error Value: White=0.98/Black=0.16 (very precise)} 0-1

[Event "Menorca Open-A 2022"]
[Site "Menorca"]
[Date "2022.04.20"]
[Round "1.3"]
[White "Nihal Sarin"]
[Black "Perez Bolanos, Joel"]
[Result "1-0"]
[ECO "E51"]
[WhiteElo "2656"]
[BlackElo "2075"]
[Annotator "TA"]
[PlyCount "49"]
[EventDate "2022.04.20"]
[EventType "swiss"]
[EventCountry "ESP"]
[SourceTitle "playchess.com"]
[Source "ChessBase"]
[SourceQuality "1"]
[TimeControl "5400+30"]

{[%evp 13,49,8,0,10,6,0,6,9,15,-14,10,0,0,0,16,28,129,147,147,133,131,117,155,167,288,281,1879,1678,1614,1601,1489,1432,29995,29996,29997,29998,29998,29999]} 1. d4 {[%emt 0:00:30]} Nf6 {[%emt 0:00:26]} 2. c4 {[%emt 0:00:16]} e6 {[%emt 0:00:24]} 3. Nc3 {[%emt 0:00:05]} Bb4 {[%emt 0:00:18]} 4. e3 {[%emt 0:00:23]} d5 {[%emt 0:00:52]} 5. Nf3 {[%emt 0:01:24]} O-O {[%emt 0:00:48]} 6. Bd2 {[%emt 0:00:06]} b6 {[%emt 0:04:54]} 7. cxd5 {[%emt 0:00:39]} exd5 {[%emt 0:00:34]} 8. Rc1 {[%emt 0:00:07] E51: Nimzo-Indian: Rubinstein: 4...0-0 5 Nf3 d5.} Be7 {[%emt 0:09:14]} 9. Bd3 {[%emt 0:01:16]} Bb7 {[%emt 0:01:43]} 10. O-O {[%emt 0:04:20] The position is equal.} Nbd7 {[%emt 0:02:10]} 11. Qe2 $5 {[%emt 0:21:24][%mdl 4] A promising side line.} c5 {[%emt 0:08:55]} 12. Ne5 {[%emt 0:03:06] [#]} a6 $146 {[%emt 0:07:25]} ({Predecessor:} 12... Bd6 13. f4 Ne4 14. Nxe4 {½-½ (14) Menna Barreto,F (2285)-Macedo,M (2408) Montenegro 2013}) 13. a4 {[%emt 0:00:04]} Re8 {[%emt 0:02:16]} 14. f4 {[%emt 0:00:50][%cal Bf2f4,Bf4f5][%mdl 32]} Ne4 {[%emt 0:06:21]} (14... Nf8 $11) 15. Nxe4 $16 {[%emt 0:31:15]} ({Worse is} 15. Qh5 g6 16. Qe2 Nxd2 17. Qxd2 c4 $15) 15... dxe4 {[%emt 0:01:49]} 16. Bc4 {[%emt 0:00:00] 0x0.001a398f4a34dp-1022s more active pieces.} Nxe5 {[%emt 0:03:42]} 17. dxe5 {[%emt 0:00:25]} Bf8 {[%emt 0:04:23]} 18. Bc3 {[%emt 0:00:34]} ({Stronger than} 18. Qh5 Bd5 19. Bxd5 Qxd5 $11) 18... Qc8 {[%emt 0:02:56]} (18... Bd5 {is a better defense.}) 19. f5 {[%emt 0:02:31][%cal Oc4f7] And now Bxf7+! would win.} Bc6 $2 {[%emt 0:03:45] [#]} (19... b5) 20. Bxf7+ $1 $18 {[%emt 0:03:43][%mdl 512]} Kxf7 {[%emt 0:00:33]} 21. Qc4+ {[%emt 0:00:02]} Ke7 {[%emt 0:00:14]} 22. Rcd1 {[%emt 0:00:01] f6+ would kill now.} Rd8 {[%emt 0:01:05]} 23. f6+ {[%emt 0:00:10] White mates.} gxf6 {[%emt 0:00:13]} 24. exf6+ {[%emt 0:00:05][%cal Be5f6,Bf6f7][%mdl 32]} Ke8 {[%emt 0:00:09]} 25. f7+ {[%emt 0:00:03] Weighted Error Value: White=0.04 (flawless) /Black=0.60} 1-0

[Event "Menorca Open-A 2022"]
[Site "Menorca"]
[Date "2022.04.20"]
[Round "1.4"]
[White "Queirolo Perez, Manuel"]
[Black "Sargsyan, Shant"]
[Result "0-1"]
[ECO "B88"]
[WhiteElo "2100"]
[BlackElo "2639"]
[Annotator "TA"]
[PlyCount "72"]
[EventDate "2022.04.20"]
[EventType "swiss"]
[EventCountry "ESP"]
[SourceTitle "playchess.com"]
[Source "ChessBase"]
[SourceQuality "1"]
[TimeControl "5400+30"]

{[%evp 15,72,12,20,9,57,0,11,-11,-5,-17,0,-11,7,-59,-52,-52,-60,-48,10,-96,-33,-96,-103,-92,-101,-162,-156,-194,-150,-145,-160,-161,-153,-206,-191,-252,-248,-364,-370,-372,-360,-436,-443,-434,-434,-435,-418,-503,-407,-400,-412,-481,-392,-560,-550,-491,-507,-507,-484]} 1. e4 {[%emt 0:00:10]} c5 {[%emt 0:01:03]} 2. Nf3 {[%emt 0:00:07]} d6 {[%emt 0:00:10]} 3. d4 {[%emt 0:00:09]} cxd4 {[%emt 0:00:10]} 4. Nxd4 {[%emt 0:00:06]} Nf6 {[%emt 0:00:12]} 5. Nc3 {[%emt 0:00:06]} Bd7 {[%emt 0:00:12]} 6. Bc4 {[%emt 0:01:01]} e6 {[%emt 0:01:09]} 7. O-O {[%emt 0:00:15]} a6 {[%emt 0:01:37]} 8. Bb3 {[%emt 0:09:24]} Nc6 {[%emt 0:01:29]} 9. Be3 {[%emt 0:04:59] B88: Sicilian: Sozin Attack.} Na5 {[%emt 0:04:08]} (9... Be7 $11 {is superior.}) 10. f3 {[%emt 0:02:23]} (10. f4 $14) 10... Be7 {[%emt 0:00:57]} 11. Qd2 {[%emt 0:02:25] The position is equal.} O-O {[%emt 0:00:51]} 12. Rad1 {[%emt 0:00:52]} Qc7 {[%emt 0:00:51]} 13. Qf2 {[%emt 0:00:54][%cal Od4e6] [#]} Nxb3 $146 {[%emt 0:03:59]} (13... Qb8 {with more complications.} 14. Qg3 b5 15. Bh6 Ne8) ({Predecessor:} 13... Nc4 14. Bxc4 Qxc4 15. Qe2 Qc7 16. f4 b5 17. a3 Rab8 18. Bc1 Rfc8 19. Kh1 Qc4 {0-1 (41) Seifert,B-Altschul,M Zlin 1958}) 14. Nxb3 {[%emt 0:00:30]} (14. cxb3 $11 Rac8 15. g4) 14... b5 $15 {[%emt 0:00:40]} 15. Bb6 {[%emt 0:03:17]} Qb8 {[%emt 0:03:01]} 16. a3 {[%emt 0:01:50]} Rc8 {[%emt 0:05:19]} (16... a5 $15) 17. Rd2 {[%emt 0:02:53]} (17. Ba5 $11 {keeps the balance.}) 17... Bc6 {[%emt 0:01:18]} (17... a5 $1 $17 18. Rb1 (18. Nxa5 $2 Ra6 $19) (18. Bxa5 Rxa5 19. Nxa5 Bd8 $17) 18... b4 19. axb4 axb4) 18. Rfd1 {[%emt 0:03:31] [#]} (18. Na5 $15) 18... Nd7 $1 $17 {[%emt 0:03:47][%cal Bf6d7,Bd7e5,Be5c4,Bc4d2][%mdl 32]} 19. Ba5 {[%emt 0:04:29] [#]} Ne5 $1 {[%emt 0:00:15]} 20. Bb4 {[%emt 0:05:09]} (20. Re2 $17) 20... Nc4 $1 $19 {[%emt 0:00:48][%csl LRb2,LRd2]} 21. e5 {[%emt 0:00:44][%cal Re5d6]} Nxd2 {[%emt 0:07:59]} 22. Rxd2 {[%emt 0:01:33][%cal Re5d6]} Bd5 {[%emt 0:00:46]} 23. Nxd5 {[%emt 0:02:15]} exd5 {[%emt 0:00:10]} 24. Rxd5 {[%emt 0:00:37]} (24. c3 $17 {keeps fighting.}) 24... Qb7 {[%emt 0:00:19]} 25. Qd4 {[%emt 0:08:53]} (25. Rxd6 {might work better.} Bxd6 26. Bxd6) 25... dxe5 {[%emt 0:03:52]} ({Stronger than} 25... Rxc2 26. exd6 Bf6 27. Qd3 $15) 26. Qxe5 {[%emt 0:01:26]} (26. Qe4 {was called for.} Qb6+ 27. Kf1) 26... Bf6 {[%emt 0:03:59]} ({Not} 26... Bxb4 $2 27. axb4 Rxc2 28. Nd4 Rxb2 29. Nf5 Qb6+ 30. Rd4 $19) 27. Qe4 {[%emt 0:00:45][%cal Od5d8] Hoping for Rd8+!} Re8 {[%emt 0:00:11][%cal Bc8e8,Be8d8,Bd8d1,Bd1c1,Bc1c2][%mdl 32] Inhibits Rd8.} 28. Qd3 {[%emt 0:03:16]} Rad8 {[%emt 0:00:09]} 29. Rxd8 {[%emt 0:00:32]} Rxd8 {[%emt 0:00:02]} 30. Qe2 {[%emt 0:00:23]} Qd5 {[%emt 0:04:06]} 31. g3 {[%emt 0:06:52]} Qd1+ {[%emt 0:01:28]} 32. Qxd1 {[%emt 0:02:24]} Rxd1+ {[%emt 0:00:07]} 33. Kg2 {[%emt 0:00:22]} Bxb2 {[%emt 0:00:07]} 34. Nc5 {[%emt 0:00:59]} (34. Kf2 $142) 34... Rc1 {[%emt 0:00:10] Black is clearly winning.} 35. Nxa6 {[%emt 0:01:40]} Rxc2+ {[%emt 0:00:06]} 36. Kh1 {[%emt 0:00:35] [#]} Bxa3 $1 {[%emt 0:00:18][%mdl 512] Weighted Error Value: White=0.44/Black=0.18 (very precise)} 0-1

[Event "Menorca Open-A 2022"]
[Site "Menorca"]
[Date "2022.04.20"]
[Round "1.5"]
[White "Gukesh D"]
[Black "Rodriguez Redondo, Adhara"]
[Result "1-0"]
[ECO "D36"]
[WhiteElo "2614"]
[BlackElo "2036"]
[Annotator "TA"]
[PlyCount "47"]
[EventDate "2022.04.20"]
[EventType "swiss"]
[EventCountry "ESP"]
[SourceTitle "playchess.com"]
[Source "ChessBase"]
[SourceQuality "1"]
[TimeControl "5400+30"]

{[%evp 22,47,37,25,50,50,180,175,166,166,160,159,152,60,291,288,288,182,429,456,438,432,473,470,495,483,660,638]} 1. d4 {[%emt 0:01:10]} d5 {[%emt 0:00:08]} 2. c4 {[%emt 0:00:58]} e6 {[%emt 0:00:03]} 3. Nc3 {[%emt 0:00:29]} Be7 {[%emt 0:00:11]} 4. Nf3 {[%emt 0:01:06]} Nf6 {[%emt 0:00:14]} 5. cxd5 {[%emt 0:00:50]} exd5 {[%emt 0:00:21]} 6. Bg5 {[%emt 0:00:17]} c6 {[%emt 0:01:35]} 7. Qc2 {[%emt 0:00:40]} Nbd7 {[%emt 0:05:19][%cal Bb8d7,Bd7f8,Bf8e6][%mdl 32]} 8. e3 {[%emt 0:00:09]} O-O {[%emt 0:01:21]} 9. Bd3 {[%emt 0:00:07]} Re8 {[%emt 0:00:58]} 10. O-O {[%emt 0:01:22]} Nf8 {[%emt 0:02:36]} 11. h3 {[%emt 0:01:39]} g6 {[%emt 0:01:24]} 12. Ne5 $1 {[%emt 0:00:22][%mdl 4] now scores much better than the old 12.Rab1.} Ne6 {[%emt 0:02:42] D36: Queen's Gambit Declined: Exchange Variation: Main line (5 Bg5 c6 6 Qc2).} 13. f4 {[%emt 0:00:29]} c5 {[%emt 0:12:07]} (13... Nd7 $14) 14. Bxf6 {[%emt 0:11:46]} Bxf6 {[%emt 0:00:08] White is clearly better.} 15. f5 {[%emt 0:00:14][%cal Rf5g6]} Nf8 {[%emt 0:17:02]} 16. fxg6 {[%emt 0:00:58] 0x0.00249b13221edp-1022s more active pieces.} hxg6 {[%emt 0:03:15] [#]} 17. Qf2 $146 {[%emt 0:12:58]} (17. Nxf7 $1 $16 {[%mdl 512]} Kxf7 {[#]} 18. Nxd5 $1 {[%mdl 512]}) ({Predecessor:} 17. Rxf6 Qxf6 18. Rf1 Qg5 19. Nxd5 Rxe5 20. dxe5 Bxh3 21. Qf2 Be6 22. Nc7 Rd8 23. Nxe6 fxe6 24. Qf7+ {1-0 (24) Lantos,L (2100)-Halasz,A (2125) Hungary 2018}) 17... Bxe5 $2 {[%emt 0:12:03]} ({Black should try} 17... Nh7 $1 $14) 18. Qxf7+ $18 {[%emt 0:00:16]} ({Less strong is} 18. dxe5 Be6 $16) 18... Kh8 {[%emt 0:00:10]} 19. Bxg6 {[%emt 0:09:45] The board is on fire.} Bg7 $2 {[%emt 0:11:18]} (19... Nxg6 $2 20. Qxg6 Re6 21. Qh5+ Kg8 22. dxe5 $18) (19... cxd4 {was worth a try.} 20. Qxe8 Qxe8 21. Bxe8 Be6) 20. Qxe8 {[%emt 0:00:40] White is clearly winning.} Qxe8 {[%emt 0:00:06]} 21. Bxe8 {[%emt 0:00:06]} cxd4 {[%emt 0:00:51]} 22. exd4 {[%emt 0:01:07]} Bxh3 {[%emt 0:01:07]} 23. Rae1 {[%emt 0:00:10]} ({Not} 23. gxh3 Bxd4+ 24. Kh1 Rxe8 25. Nxd5 b6 $18) 23... Bc8 {[%emt 0:27:01]} 24. Nxd5 {[%emt 0:00:36] Weighted Error Value: White=0.31/Black=1.11} 1-0

[Event "Menorca Open-A 2022"]
[Site "Menorca"]
[Date "2022.04.20"]
[Round "1.6"]
[White "Martinez Rubi, Alberto"]
[Black "Adhiban, B.."]
[Result "0-1"]
[ECO "B41"]
[WhiteElo "2088"]
[BlackElo "2648"]
[Annotator "TA"]
[PlyCount "68"]
[EventDate "2022.04.20"]
[EventType "swiss"]
[EventCountry "ESP"]
[SourceTitle "playchess.com"]
[Source "ChessBase"]
[SourceQuality "1"]
[TimeControl "5400+30"]

{[%evp 11,68,11,24,25,53,54,52,54,60,31,65,-12,-10,-14,-12,-77,-22,-26,-33,-92,-92,-139,-143,-179,-163,-172,-164,-200,-200,-273,-275,-314,-315,-336,-331,-310,-283,-287,-288,-296,-289,-429,-390,-463,-461,-431,-441,-446,-436,-562,-535,-559,-560,-554,-539,-752,-741,-697,-691]} 1. e4 {[%emt 0:00:02]} c5 {[%emt 0:00:16]} 2. Nf3 {[%emt 0:00:14][%cal Bg1f3,Bf3d4,Bd4c2][%mdl 32]} e6 {[%emt 0:01:25]} 3. d4 {[%emt 0:00:23]} cxd4 {[%emt 0:00:03]} 4. Nxd4 {[%emt 0:00:25]} a6 {[%emt 0:00:16]} 5. c4 {[%emt 0:02:57]} Nf6 {[%emt 0:00:04]} 6. Nc3 {[%emt 0:02:36]} Bb4 {[%emt 0:08:33]} 7. Qd3 {[%emt 0:20:54] Nowadays more popular than 7.Bd3. B41: Sicilian: Kan Variation: 5 c4.} d6 {[%emt 0:00:29]} 8. Nc2 {[%emt 0:13:31]} Ba5 {[%emt 0:05:26]} 9. b4 {[%emt 0:01:42] White is slightly better.} Bb6 {[%emt 0:00:58] [#]} 10. Bf4 $146 {[%emt 0:15:34]} ({Predecessor:} 10. Be2 Nc6 11. a3 O-O 12. O-O Ne5 13. Qg3 Qc7 14. Bf4 Nxc4 15. Bxc4 Qxc4 16. Bxd6 {1-0 (55) Grigoriants,S (2542)-Zubov,A (2589) Chess.com INT 2020}) 10... Ng4 {[%emt 0:08:24]} 11. c5 {[%emt 0:18:36]} (11. Bg3 $1 $14) 11... dxc5 $11 {[%emt 0:08:23] [#] Strongly threatening ...Qf6.} 12. Qxd8+ {[%emt 0:05:02]} Bxd8 {[%emt 0:00:49]} 13. h3 {[%emt 0:07:47]} (13. bxc5 $11 {remains equal.} Ba5 14. Bd2) 13... cxb4 {[%emt 0:07:01]} 14. Nxb4 {[%emt 0:02:13]} Nf6 {[%emt 0:00:05][%cal Bg4f6,Bf6d7,Bd7e5][%mdl 32]} 15. e5 {[%emt 0:00:55]} (15. Rc1 $15) 15... Nfd7 $17 {[%emt 0:05:29] Black keeps a firm grip on the game.} 16. Ne4 {[%emt 0:01:37]} (16. Rc1 $142 Ba5 17. a3) 16... Ba5 {[%emt 0:02:02]} 17. Bd2 {[%emt 0:03:31]} Nxe5 {[%emt 0:01:28]} 18. Rc1 {[%emt 0:00:58]} O-O {[%emt 0:02:56]} 19. Nd6 {[%emt 0:00:13]} Nbc6 {[%emt 0:00:44][%cal Bb8c6,Bc6b4,Bb4d3,Bd3c1,Bc1b3][%mdl 32]} 20. a3 {[%emt 0:00:32]} Rd8 {[%emt 0:00:29]} 21. Nxc8 {[%emt 0:00:18]} Raxc8 {[%emt 0:00:06]} 22. f4 {[%emt 0:00:08]} Nxb4 {[%emt 0:00:22]} 23. Rxc8 {[%emt 0:00:26]} Nbd3+ {[%emt 0:00:21] Pair of Knights!} ({Worse is} 23... Rxc8 24. axb4 Bxb4 25. Bxb4 Nd3+ 26. Bxd3 $17) 24. Ke2 {[%emt 0:00:14] [#] aiming for Rxd8+.} Rxc8 {[%emt 0:00:33]} 25. fxe5 {[%emt 0:01:02]} Nc1+ {[%emt 0:01:18]} ({And not} 25... Nxe5 26. Bxa5 Rc2+ 27. Ke3 $11) 26. Ke3 {[%emt 0:00:39]} (26. Bxc1 {is the only way for White.} Rxc1 27. h4) 26... Bb6+ $19 {[%emt 0:02:37]} 27. Ke4 {[%emt 0:00:17]} Nb3 {[%emt 0:00:20] Black is clearly winning.} 28. Be3 {[%emt 0:01:13]} Bxe3 {[%emt 0:02:14]} 29. Kxe3 {[%emt 0:00:01][%mdl 4096] Endgame KRB-KRN} Rc3+ {[%emt 0:00:15]} 30. Bd3 {[%emt 0:00:30]} Nc1 {[%emt 0:00:53]} 31. Kd2 {[%emt 0:00:04]} Rxd3+ {[%emt 0:00:04]} 32. Kxc1 {[%emt 0:00:06]} Rxa3 {[%emt 0:00:02] ( -> ...Ra1+)} 33. Kb2 {[%emt 0:00:08] Against Ra1} Rg3 {[%emt 0:00:09]} 34. Rd1 {[%emt 0:00:10]} Rxg2+ {[%emt 0:00:03] Weighted Error Value: White=0.43/Black=0.08 (flawless)} 0-1